bitfinex/quotes_BTCUSD_20251205
["timestamp","ask_amount","ask_price","bid_price","bid_amount"]
[1764947153021,0.01093553,91445.0,91440.0,0.01393609]
[1764947153229,0.3279837,91468.0,91440.0,0.01393609]
[1764947153230,0.323,91490.0,91440.0,0.01393609]
[1764947153440,0.01093577,91443.0,91434.0,0.21873615]
[1764947153638,0.01093577,91443.0,91436.0,0.01093661]
[1764947153856,0.01093433,91455.0,91441.0,0.01093601]
[1764947154071,0.01093362,91461.0,91449.0,0.21870113]
[1764947154283,0.01093338,91463.0,91449.0,0.21870113]
[1764947154487,0.01093218,91473.0,91449.0,0.220314]
[1764947154701,0.09286,91464.0,91449.0,0.21870113]
[1764947154899,0.09286,91481.0,91449.0,0.21870113]
[1764947155054,0.01093445,91454.0,91448.0,0.21886549]
[1764947155257,0.01093445,91454.0,91448.0,0.000164]
[1764947155258,0.01093481,91451.0,91448.0,0.000164]
[1764947155433,0.2189344,91450.0,91448.0,0.000164]
[1764947155638,0.09904,91449.0,91448.0,0.000164]
[1764947156049,0.09904,91449.0,91417.0,0.03005888]
[1764947156050,0.01093816,91423.0,91412.0,0.01093948]
[1764947156251,0.21876811,91421.0,91410.0,0.00299996]
[1764947156449,0.21876811,91421.0,91412.0,0.01093948]
[1764947156682,0.21876811,91421.0,91410.0,0.00099999]
[1764947156885,0.21876811,91421.0,91410.0,0.00299996]
[1764947157254,0.22970366,91423.0,91420.0,0.13141957]
[1764947157255,0.01093816,91423.0,91420.0,0.13141957]
[1764947157455,0.21876811,91421.0,91420.0,0.03141957]
[1764947157884,0.31780811,91421.0,91420.0,0.03141957]
[1764947160378,0.0599878,91426.0,91420.0,0.03141957]
[1764947160379,0.01093792,91425.0,91420.0,0.03441953]
[1764947160588,0.01093792,91425.0,91420.0,0.03141957]
[1764947160589,0.09904,91421.0,91420.0,0.03141957]
[1764947161008,0.21883035,91395.0,91384.0,0.0281897]
[1764947161208,0.21883035,91395.0,91394.0,0.0019841]
[1764947161830,0.0109402,91406.0,91394.0,0.22081445]
[1764947161979,0.01094127,91397.0,91394.0,0.0019841]
[1764947162182,0.21883035,91395.0,91394.0,0.0019841]
[1764947163097,0.31787035,91395.0,91394.0,0.0019841]
[1764947165502,0.33691035,91395.0,91394.0,0.0019841]
[1764947165696,0.31787035,91395.0,91394.0,0.0019841]
[1764947165951,0.01094127,91397.0,91394.0,0.0019841]
[1764947166176,0.09904,91413.0,91404.0,0.01094044]
[1764947166177,0.01093936,91413.0,91404.0,0.01094044]
[1764947166385,0.01093768,91427.0,91417.0,0.01093888]
[1764947166587,0.2187705,91420.0,91412.0,0.22972829]
[1764947166855,0.0109378,91426.0,91422.0,0.21876491]
[1764947167100,0.04905,91451.0,91441.0,0.01093601]
[1764947167300,0.01093457,91453.0,91448.0,0.2187013]
[1764947167516,0.01093457,91453.0,91444.0,0.01093565]
[1764947167517,0.01093541,91446.0,91440.0,0.00099999]
[1764947167712,0.00746208,91462.0,91440.0,0.00099999]
[1764947167713,0.01093457,91453.0,91450.0,0.00099999]
[1764947167931,0.01093577,91443.0,91440.0,0.00199997]
[1764947168165,0.01093601,91441.0,91433.0,0.01093697]
[1764947168386,0.01093601,91441.0,91412.0,0.43757557]
[1764947168387,0.01093756,91428.0,91420.0,0.00299996]
[1764947168592,0.01093685,91434.0,91430.0,0.00099999]
[1764947168800,0.21874418,91431.0,91430.0,0.00099999]
[1764947169422,0.21874418,91431.0,91418.0,0.21877294]
[1764947169423,0.21879204,91411.0,91410.0,0.00099999]
[1764947169633,0.21881119,91403.0,91384.0,0.0281897]
[1764947169843,0.21881119,91403.0,91390.0,0.00099999]
[1764947170052,0.31785119,91403.0,91390.0,0.00299996]
[1764947170257,0.21881119,91403.0,91390.0,0.00299996]
[1764947170673,0.31785119,91403.0,91402.0,0.01658203]
[1764947170884,0.31785119,91403.0,91402.0,2.03e-06]
[1764947171086,0.21886387,91381.0,91380.0,0.00099998]
[1764947171217,0.21886387,91381.0,91380.0,0.00011959]
[1764947171624,0.31790387,91381.0,91380.0,0.00011959]
[1764947172572,0.33690387,91381.0,91380.0,0.00011959]
[1764947172807,0.33690387,91381.0,91380.0,0.00173246]
[1764947172808,0.21886387,91381.0,91380.0,0.00173246]
[1764947173028,0.21886387,91381.0,91380.0,0.00011959]
[1764947173710,0.31790387,91381.0,91380.0,0.00011959]
[1764947173918,0.21886387,91381.0,91380.0,0.00011959]
[1764947174125,0.21886387,91381.0,91380.0,0.00262826]
[1764947174786,0.31790387,91381.0,91380.0,0.00262826]
[1764947174991,0.21886387,91381.0,91380.0,0.00262826]
[1764947175398,0.22978108,91392.0,91380.0,0.00462823]
[1764947175531,0.01094283,91384.0,91380.0,0.00011959]
[1764947175736,0.01094223,91389.0,91384.0,0.01094283]
[1764947175962,0.01094163,91394.0,91388.0,0.01094235]
[1764947176168,0.01094175,91393.0,91388.0,0.00161287]
[1764947176368,0.01094199,91391.0,91388.0,0.00161287]
[1764947176715,0.21884232,91390.0,91388.0,0.00161287]
[1764947177129,0.21884232,91390.0,91389.0,0.00224502]
[1764947177676,0.31788232,91390.0,91389.0,0.00224502]
[1764947178892,0.01094163,91394.0,91389.0,0.00224502]
[1764947178893,0.01094139,91396.0,91390.0,0.00299996]
[1764947179095,0.57463155,91450.0,91390.0,0.00299996]
[1764947179096,0.01094067,91402.0,91397.0,0.01094127]
[1764947179403,1.09357741,91444.0,91391.0,0.01094199]
[1764947179404,0.01094151,91395.0,91391.0,0.01094199]
[1764947179613,0.01094127,91397.0,91393.0,0.01094175]
[1764947179979,0.01094127,91397.0,91392.0,0.01094187]
[1764947179980,0.01093924,91414.0,91410.0,0.21879205]
[1764947180167,0.01093864,91419.0,91416.0,0.010939]
[1764947180342,0.01093852,91420.0,91415.0,0.01093912]
[1764947180522,0.22970808,91421.0,91415.0,0.01093912]
[1764947180719,0.22970806,91421.0,91416.0,0.22971777]
[1764947180923,0.21874475,91431.0,91410.0,0.00461283]
[1764947180924,0.01093924,91414.0,91410.0,0.00461283]
[1764947181151,0.01093936,91413.0,91410.0,0.01367217]
[1764947181449,0.01093936,91413.0,91410.0,0.00011959]
[1764947181450,0.21879077,91412.0,91410.0,0.00011959]
[1764947181819,0.09904,91411.0,91410.0,0.00011959]
[1764947182806,0.09904,91411.0,91360.0,0.03118966]
[1764947182807,0.01094415,91373.0,91360.0,0.03118966]
[1764947183015,0.01094534,91363.0,91360.0,0.00173251]
[1764947183226,0.22985387,91363.0,91360.0,0.06121018]
[1764947183433,0.21891083,91362.0,91360.0,0.00173251]
[1764947184050,0.21891083,91362.0,91360.0,0.00011964]
[1764947184868,0.21891004,91362.0,91360.0,0.00011964]
[1764947185084,0.01094499,91366.0,91360.0,0.00011964]
[1764947185085,0.01094499,91366.0,91360.0,0.00173251]
[1764947185298,0.2189102,91362.0,91360.0,0.00173251]
[1764947185507,0.2189102,91362.0,91360.0,0.00011964]
[1764947185946,0.2189102,91362.0,91361.0,0.00306542]
[1764947187289,0.21890833,91363.0,91361.0,0.00467829]
[1764947187501,0.01094523,91364.0,91361.0,0.00161287]
[1764947187709,0.21890832,91363.0,91361.0,0.00161287]
[1764947187914,0.21890829,91363.0,91361.0,0.00161287]
[1764947188133,0.01094523,91364.0,91361.0,0.00161287]
[1764947188333,0.21890699,91363.0,91361.0,0.00161287]
[1764947190161,0.21891178,91361.0,91360.0,0.00011964]
[1764947190724,0.22985233,91363.0,91360.0,0.00173251]
[1764947190938,0.01646244,91408.0,91366.0,0.01094499]
[1764947190939,0.01094391,91375.0,91366.0,0.01094499]
[1764947191146,0.01094355,91378.0,91373.0,0.01094415]
[1764947191366,0.01094367,91377.0,91373.0,0.00161287]
[1764947191537,0.01094319,91381.0,91377.0,0.22981524]
[1764947191738,0.01094343,91379.0,91376.0,0.01094379]
[1764947191939,0.01094355,91378.0,91375.0,0.01094391]
[1764947192207,0.01094355,91378.0,91370.0,0.00299996]
[1764947192208,0.01094534,91363.0,91360.0,0.00211961]
[1764947192380,0.01094534,91363.0,91360.0,0.00011964]
[1764947192381,0.21891027,91362.0,91360.0,0.00011964]
[1764947192586,0.09342,91361.0,91360.0,0.00011964]
[1764947192788,0.21891027,91362.0,91360.0,0.00011964]
[1764947193266,0.21891027,91362.0,91361.0,0.00306542]
[1764947194115,0.31233027,91362.0,91361.0,0.00306542]
[1764947194329,0.21891027,91362.0,91361.0,0.00306542]
[1764947194533,0.01094523,91364.0,91361.0,0.00306542]
[1764947194707,0.21890939,91362.0,91361.0,0.00161287]
[1764947194946,0.01094499,91366.0,91362.0,0.22985485]
[1764947195153,0.01094367,91377.0,91370.0,0.00099999]
[1764947195351,0.43765689,91396.0,91370.0,0.00099999]
[1764947195352,0.01094295,91383.0,91380.0,0.01094331]
[1764947195555,0.01094295,91383.0,91370.0,0.02650185]
[1764947195556,0.01094415,91373.0,91370.0,0.00161287]
[1764947195760,0.01094367,91377.0,91371.0,0.01094439]
[1764947195887,0.01094343,91379.0,91373.0,0.01094415]
[1764947196093,0.09342,91398.0,91371.0,0.23144506]
[1764947196094,0.21888353,91373.0,91371.0,0.00161287]
[1764947196479,0.21888433,91373.0,91371.0,0.00161287]
[1764947196680,0.21885909,91383.0,91371.0,0.01255726]
[1764947196879,0.22981523,91378.0,91375.0,0.21887799]
[1764947197166,0.01094271,91385.0,91382.0,0.01094307]
[1764947197349,0.21886168,91382.0,91380.0,0.00299996]
[1764947197561,0.01094139,91396.0,91385.0,0.01094271]
[1764947197732,0.21884582,91389.0,91386.0,0.01094259]
[1764947197937,0.21885099,91387.0,91380.0,0.00299996]
[1764947198165,0.01094259,91386.0,91380.0,0.00099999]
[1764947198324,0.21884912,91388.0,91383.0,0.21885908]
[1764947198545,0.01094247,91387.0,91385.0,0.21885385]
[1764947198754,0.01094199,91391.0,91380.0,0.00461283]
[1764947198952,0.01094235,91388.0,91381.0,0.01094319]
[1764947199336,0.21886255,91382.0,91380.0,0.00161287]
[1764947199675,0.01094367,91377.0,91373.0,0.21888191]
[1764947200059,0.22981923,91377.0,91374.0,0.01094403]
[1764947200266,0.01094259,91386.0,91381.0,0.01094319]
[1764947200416,0.01094259,91386.0,91382.0,0.01094307]
[1764947200620,0.21885908,91383.0,91381.0,0.00161287]
[1764947200806,0.01094151,91395.0,91389.0,0.01094223]
[1764947201001,0.22976612,91398.0,91392.0,0.01094187]
[1764947201204,0.04857,91419.0,91396.0,0.01094139]
[1764947201205,0.01094067,91402.0,91396.0,0.01094139]
[1764947201403,0.22975705,91401.0,91398.0,0.01094115]
[1764947201679,0.22975705,91401.0,91396.0,0.01094139]
[1764947201680,0.01094091,91400.0,91396.0,0.01094139]
[1764947201839,0.21882184,91399.0,91396.0,0.22976778]
[1764947202039,0.21882184,91399.0,91396.0,0.22988742]
[1764947202278,0.01094103,91399.0,91396.0,0.00011964]
[1764947202478,0.21880906,91404.0,91402.0,0.21881354]
[1764947202687,0.21880906,91404.0,91400.0,0.00299996]
[1764947202688,0.21881364,91402.0,91400.0,0.00299996]
[1764947202889,0.01094044,91404.0,91400.0,0.00099999]
[1764947203059,0.21881362,91402.0,91400.0,0.00099999]
[1764947203508,0.2297533,91403.0,91400.0,0.00099999]
[1764947203664,0.21881381,91402.0,91400.0,0.00099999]
[1764947204191,0.21882556,91397.0,91396.0,0.00011964]
[1764947206245,0.31224556,91397.0,91396.0,0.00011964]
[1764947206491,0.81224556,91397.0,91396.0,0.00011964]
[1764947207137,0.81224556,91397.0,91357.0,2.12871614]
[1764947207138,0.21891897,91358.0,91357.0,2.1]
[1764947207359,0.21903969,91358.0,91357.0,2.1]
[1764947207562,0.31896969,91358.0,91357.0,2.1]
[1764947209131,0.64196969,91358.0,91357.0,2.1]
[1764947209541,0.64196969,91358.0,91357.0,0.77783045]
[1764947209749,0.64196969,91358.0,91305.0,0.0109523]
[1764947209750,0.21900287,91323.0,91310.0,0.00199997]
[1764947209926,0.21900287,91323.0,91301.0,0.01646244]
[1764947210288,0.31893287,91323.0,91301.0,0.01646244]
[1764947210492,0.21905565,91301.0,91300.0,0.00339996]
[1764947210815,0.21905325,91302.0,91300.0,0.00339996]
[1764947211011,0.00012058,91301.0,91300.0,0.00201287]
[1764947211193,0.00012058,91301.0,91300.0,0.02391867]
[1764947211435,0.00012058,91301.0,91300.0,0.24297672]
[1764947211608,0.00012058,91301.0,91300.0,0.00201287]
[1764947213397,0.00012058,91301.0,91300.0,0.31584092]
[1764947213612,0.01094942,91329.0,91320.0,0.00299996]
[1764947213808,0.21900694,91322.0,91320.0,0.00161287]
[1764947214023,0.21900694,91322.0,91300.0,0.00525446]
[1764947214024,0.01095194,91308.0,91300.0,0.00239997]
[1764947214223,0.01094966,91327.0,91320.0,0.00299996]
[1764947214442,0.01094966,91327.0,91320.0,0.00099999]
[1764947214574,0.01094978,91326.0,91320.0,0.00461283]
[1764947214778,0.01094966,91327.0,91320.0,0.00461283]
[1764947214978,0.21900287,91323.0,91320.0,0.00161287]
[1764947215181,0.21900287,91323.0,91310.0,0.00299996]
[1764947215182,0.01095098,91316.0,91310.0,0.00199997]
[1764947215385,0.00011949,91329.0,91300.0,0.019]
[1764947215386,0.01095254,91303.0,91300.0,0.019]
[1764947215728,0.00011949,91329.0,91310.0,0.00299996]
[1764947215729,0.01094978,91326.0,91310.0,0.00299996]
[1764947215933,0.0109505,91320.0,91313.0,0.01095134]
[1764947216137,0.22994176,91328.0,91323.0,0.01095014]
[1764947216336,0.00011949,91329.0,91327.0,0.21899328]
[1764947216551,0.00011949,91329.0,91327.0,0.21899133]
[1764947216759,0.00011949,91329.0,91327.0,0.2206042]
[1764947216964,0.00011949,91329.0,91327.0,0.00161287]
[1764947217173,0.00011949,91329.0,91327.0,0.22060476]
[1764947217380,0.00011949,91329.0,91327.0,0.24250408]
[1764947217610,0.00011949,91329.0,91327.0,0.22060476]
[1764947218043,0.00011949,91329.0,91328.0,0.02351195]
[1764947219115,0.00011949,91329.0,91328.0,0.00161287]
[1764947219323,0.00011949,91329.0,91328.0,0.11937195]
[1764947219681,0.00011949,91329.0,91328.0,0.02351195]
[1764947220194,0.00011949,91329.0,91328.0,0.09747287]
[1764947220546,0.00011949,91329.0,91328.0,0.11937195]
[1764947221077,0.00011949,91329.0,91328.0,0.02351195]
[1764947221278,0.00011949,91329.0,91328.0,0.04207195]
[1764947221490,0.00011949,91329.0,91328.0,0.00161287]
[1764947221696,0.00011949,91329.0,91316.0,0.01852]
[1764947221697,0.01095002,91324.0,91319.0,0.01095062]
[1764947221904,0.00011949,91329.0,91327.0,0.21899148]
[1764947222098,0.00011949,91329.0,91328.0,0.00161287]
[1764947222303,0.00011949,91329.0,91328.0,0.09747287]
[1764947222805,0.1449,91371.0,91349.0,0.21894054]
[1764947222806,0.01094487,91367.0,91349.0,0.21894054]
[1764947223008,0.09548,91398.0,91349.0,0.33493341]
[1764947223213,0.01094271,91385.0,91380.0,0.00299996]
[1764947223414,0.01094415,91373.0,91360.0,0.00299996]
[1764947223566,0.01094499,91366.0,91362.0,0.01094546]
[1764947223893,0.01094606,91357.0,91350.0,0.00099999]
[1764947224091,0.0109475,91345.0,91342.0,0.01094786]
[1764947224291,0.21894751,91347.0,91342.0,0.01094786]
[1764947224292,0.01094726,91347.0,91343.0,0.01094774]
[1764947224575,0.01646244,91400.0,91352.0,0.01094666]
[1764947224775,0.01094439,91371.0,91366.0,0.01094499]
[1764947225052,0.01094439,91371.0,91360.0,0.00299996]
[1764947225053,0.21891032,91362.0,91360.0,0.00299996]
[1764947225243,0.01094534,91363.0,91352.0,0.00161287]
[1764947225244,0.21893096,91353.0,91352.0,0.00161287]
[1764947225443,0.21893096,91353.0,91342.0,0.21895557]
[1764947225444,0.21895972,91341.0,91340.0,0.01951999]
[1764947225981,0.01094822,91339.0,91330.0,0.01394926]
[1764947226179,0.01094822,91339.0,91330.0,0.00299996]
[1764947226180,0.21898129,91332.0,91330.0,0.00299996]
[1764947226379,0.22994155,91328.0,91325.0,0.0109499]
[1764947226600,0.22994155,91328.0,91320.0,0.00299996]
[1764947226601,0.01095014,91323.0,91320.0,0.00299996]
[1764947226947,0.21900578,91322.0,91320.0,0.00040239]
[1764947227363,0.09548,91321.0,91320.0,0.00040239]
[1764947228212,0.21900578,91322.0,91320.0,0.00040239]
[1764947228596,0.01094942,91329.0,91323.0,0.01095014]
[1764947228937,0.01094942,91329.0,91320.0,0.00040239]
[1764947228938,0.21900626,91322.0,91320.0,0.00040239]
[1764947229626,0.09548,91321.0,91320.0,0.00040239]
[1764947229865,0.31208345,91322.0,91320.0,0.00040239]
[1764947229866,0.2190068,91322.0,91320.0,0.00040239]
[1764947230057,0.09548,91321.0,91320.0,0.00040239]
[1764947231243,0.21900527,91322.0,91320.0,0.00040239]
[1764947231647,0.21900527,91322.0,91321.0,0.00423829]
[1764947232632,0.01094942,91329.0,91323.0,0.01095014]
[1764947232864,0.01094978,91326.0,91323.0,0.01256301]
[1764947233076,0.21899859,91325.0,91323.0,0.00161287]
[1764947233296,0.21900767,91321.0,91320.0,0.00040239]
[1764947233699,0.31448767,91321.0,91320.0,0.00040239]
[1764947234547,0.21900767,91321.0,91320.0,0.00040239]
[1764947234749,0.31448767,91321.0,91320.0,0.00040239]
[1764947235409,0.21905565,91301.0,91300.0,0.0004]
[1764947235606,0.21905565,91301.0,91300.0,0.00051949]
[1764947235607,0.25066565,91301.0,91300.0,0.00051949]
[1764947235810,0.34614565,91301.0,91300.0,0.00051949]
[1764947236620,0.25066565,91301.0,91300.0,0.00051949]
[1764947236793,0.21905565,91301.0,91300.0,0.00051949]
[1764947236996,0.31453565,91301.0,91300.0,0.00051949]
[1764947239570,0.31453565,91301.0,91270.0,0.0109565]
[1764947239571,0.31453565,91301.0,91270.0,0.00199997]
[1764947239572,0.21912765,91271.0,91270.0,0.00199997]
[1764947239778,0.21912765,91271.0,91260.0,0.0004]
[1764947239779,0.21915166,91261.0,91260.0,0.0004]
[1764947239982,0.21915166,91261.0,91260.0,0.00052058]
[1764947240197,0.21915166,91261.0,91260.0,0.00654949]
[1764947241625,0.31463166,91261.0,91260.0,0.00654949]
[1764947243247,0.39680874,91261.0,91260.0,0.00654949]
[1764947243633,0.31463166,91261.0,91260.0,0.00654949]
[1764947244056,0.21915166,91261.0,91260.0,0.00654949]
[1764947244274,0.31463166,91261.0,91260.0,0.00654949]
[1764947244886,0.3310941,91261.0,91260.0,0.00654949]
[1764947245298,2.6540941,91261.0,91260.0,0.00654949]
[1764947245508,2.6540941,91261.0,91230.0,0.00139999]
[1764947245509,0.21922372,91231.0,91230.0,0.0004]
[1764947245723,0.26531299,91231.0,91230.0,0.0004]
[1764947245877,0.35584299,91231.0,91230.0,0.0004]
[1764947248100,0.21934299,91231.0,91230.0,0.0004]
[1764947248296,0.00011927,91231.0,91230.0,0.0004]
[1764947248546,0.00011927,91231.0,91230.0,0.00201287]
[1764947249179,0.00011927,91231.0,91230.0,0.0004]
[1764947249180,0.09064927,91231.0,91230.0,0.0004]
[1764947249480,0.00011927,91231.0,91230.0,0.0004]
[1764947249615,0.00011927,91231.0,91230.0,0.21962613]
[1764947249815,0.00011927,91231.0,91230.0,0.221239]
[1764947250017,0.00011927,91231.0,91230.0,0.00201287]
[1764947250421,0.00011927,91231.0,91230.0,0.11464548]
[1764947251033,0.00011927,91231.0,91230.0,0.11552599]
[1764947251691,0.00011927,91231.0,91230.0,0.02481599]
[1764947251913,0.00011927,91231.0,91230.0,0.00289338]
[1764947253975,0.00011927,91231.0,91230.0,0.00128051]
[1764947254766,0.00011927,91231.0,91230.0,0.00289338]
[1764947255019,0.00011927,91231.0,91230.0,0.11552599]
[1764947257193,0.00011927,91231.0,91230.0,0.02481599]
[1764947257362,0.00011927,91231.0,91230.0,0.11552599]
[1764947258011,0.00011927,91231.0,91230.0,0.02481599]
[1764947258202,0.00011927,91231.0,91230.0,0.00289338]
[1764947258379,0.00011927,91231.0,91230.0,0.00128051]
[1764947258577,0.09064927,91231.0,91230.0,0.00128051]
[1764947260682,0.00011927,91231.0,91230.0,0.00128051]
[1764947260927,0.21934299,91231.0,91230.0,0.00128051]
[1764947263594,0.30987299,91231.0,91230.0,0.00128051]
[1764947263745,0.36399299,91231.0,91230.0,0.00128051]
[1764947264092,0.38227299,91231.0,91230.0,1e-08]
[1764947268242,0.70527299,91231.0,91230.0,1e-08]
[1764947268451,0.70527299,91231.0,91190.0,0.00099999]
[1764947268452,0.21931988,91191.0,91190.0,0.00099999]
[1764947268652,0.01096635,91188.0,91180.0,0.00299996]
[1764947268861,0.01096659,91186.0,91180.0,0.01558014]
[1764947269035,0.21934241,91182.0,91180.0,0.00161287]
[1764947269229,0.06532,91181.0,91180.0,0.00161287]
[1764947269437,0.0109684,91171.0,91165.0,0.01096912]
[1764947269766,0.01096864,91169.0,91165.0,0.22099494]
[1764947270088,0.21937942,91167.0,91165.0,0.00161287]
[1764947270292,0.01096876,91168.0,91165.0,0.00161287]
[1764947270505,0.2194878,91171.0,91167.0,0.01096888]
[1764947270712,0.2194878,91171.0,91167.0,0.00161287]
[1764947270713,0.01096852,91170.0,91167.0,0.00161287]
[1764947270906,0.00011914,91171.0,91168.0,0.01096876]
[1764947271123,0.00011914,91171.0,91170.0,0.22098327]
[1764947271321,0.00011914,91171.0,91170.0,0.00161287]
[1764947271526,0.21948714,91171.0,91170.0,0.00161287]
[1764947271738,0.01096972,91160.0,91152.0,0.04436068]
[1764947271935,0.21941125,91154.0,91152.0,0.00161287]
[1764947272494,0.09062,91153.0,91152.0,0.00161287]
[1764947272696,0.21941372,91152.0,91150.0,9e-05]
[1764947273249,0.09062,91151.0,91150.0,9e-05]
[1764947274425,0.21941372,91152.0,91150.0,9e-05]
[1764947275045,0.21941372,91152.0,91150.0,0.00170287]
[1764947275245,0.23038428,91153.0,91151.0,0.00232109]
[1764947275246,0.01097056,91153.0,91151.0,0.00232109]
[1764947275443,0.21941613,91151.0,91150.0,0.00170287]
[1764947276006,0.21941613,91151.0,91150.0,9e-05]
[1764947276211,0.37873613,91151.0,91150.0,9e-05]
[1764947276419,0.37873613,91151.0,91150.0,0.0020805]
[1764947276625,0.15932,91151.0,91130.0,0.00139999]
[1764947276830,0.33198428,91131.0,91130.0,0.00139999]
[1764947277093,0.33198428,91131.0,91130.0,0.0004]
[1764947277325,0.42382428,91131.0,91130.0,0.0004]
[1764947277518,0.35916428,91131.0,91130.0,0.0004]
[1764947278218,0.35928333,91131.0,91130.0,0.0004]
[1764947278670,0.35928333,91131.0,91120.0,0.0004]
[1764947278671,0.21948837,91121.0,91120.0,0.0004]
[1764947279079,0.31880837,91121.0,91120.0,0.0004]
[1764947279913,0.64180837,91121.0,91120.0,0.0004]
[1764947280453,0.31880837,91121.0,91120.0,0.0004]
[1764947281099,2.31880837,91121.0,91120.0,0.0004]
[1764947281290,0.31880837,91121.0,91120.0,0.0004]
[1764947281449,0.46843937,91121.0,91120.0,0.0004]
[1764947281877,0.21953655,91101.0,91100.0,0.00099999]
[1764947282104,0.21953563,91102.0,91100.0,0.00161287]
[1764947282309,0.21953563,91102.0,91090.0,0.00099999]
[1764947282310,0.21956001,91092.0,91090.0,0.00099999]
[1764947282430,0.21957753,91084.0,91070.0,0.01198055]
[1764947282629,0.21957753,91084.0,91070.0,0.00099999]
[1764947282828,0.31889753,91084.0,91070.0,0.00099999]
[1764947283035,0.3190165,91084.0,91070.0,0.00099999]
[1764947283276,0.3190165,91084.0,91083.0,0.01843329]
[1764947283479,0.00011897,91084.0,91083.0,0.01843329]
[1764947283634,0.00011897,91084.0,91083.0,0.02004616]
[1764947284063,0.00011897,91084.0,91083.0,0.13317415]
[1764947284838,0.00011897,91084.0,91083.0,0.02004616]
[1764947285040,0.00011897,91084.0,91083.0,0.04200415]
[1764947285245,0.00011897,91084.0,91083.0,0.02004616]
[1764947285471,0.00011897,91084.0,91083.0,0.02554171]
[1764947285674,0.00011897,91084.0,91083.0,0.11671171]
[1764947286510,0.00011897,91084.0,91083.0,0.17777171]
[1764947286859,0.00011897,91084.0,91083.0,0.00358372]
[1764947287145,0.14657897,91084.0,91083.0,0.00197085]
[1764947287389,0.09892897,91084.0,91083.0,0.00197085]
[1764947288475,0.09892897,91084.0,91035.0,0.01098478]
[1764947288476,0.01098261,91053.0,91035.0,0.01098478]
[1764947288664,0.01098261,91053.0,91029.0,0.03433]
[1764947288665,0.24373711,91051.0,91040.0,0.00299996]
[1764947288871,0.21965711,91051.0,91040.0,0.00299996]
[1764947289288,0.31897711,91051.0,91040.0,0.00099999]
[1764947289496,0.21971261,91028.0,91020.0,0.00139999]
[1764947289712,0.21983144,91028.0,91020.0,0.00139999]
[1764947289913,0.31915144,91028.0,91020.0,0.00139999]
[1764947290116,0.31915144,91028.0,91020.0,0.00339996]
[1764947290321,0.00011883,91028.0,91023.0,0.21972288]
[1764947290524,0.00011883,91028.0,91023.0,0.01098623]
[1764947290733,0.09943883,91028.0,91020.0,0.00339996]
[1764947290952,0.09943883,91028.0,91020.0,0.00139999]
[1764947291171,0.19946148,91028.0,91020.0,0.00139999]
[1764947291393,0.21975365,91011.0,91010.0,0.0004]
[1764947291603,0.25491365,91011.0,91010.0,0.0004]
[1764947291806,0.35423365,91011.0,91010.0,0.0004]
[1764947292236,0.69061365,91011.0,91010.0,0.0004]
[1764947292694,0.50442665,91011.0,91010.0,0.0004]
[1764947293149,0.52262665,91011.0,91010.0,0.0004]
[1764947293361,0.37243365,91011.0,91010.0,0.0004]
[1764947293638,0.35423365,91011.0,91010.0,0.0004]
[1764947294299,0.01098744,91013.0,91010.0,0.0004]
[1764947294564,0.09932,91012.0,91010.0,0.0004]
[1764947294776,0.01098707,91016.0,91010.0,0.01600063]
[1764947294988,0.2307285,91017.0,91010.0,0.00501283]
[1764947295215,0.21975355,91012.0,91010.0,0.0004]
[1764947295638,0.09932,91011.0,91010.0,0.0004]
[1764947296057,0.09932,91011.0,90990.0,0.00099999]
[1764947296058,0.21980195,90991.0,90990.0,0.00099999]
[1764947296504,0.31912195,90991.0,90990.0,0.00099999]
[1764947296713,0.01099094,90984.0,90980.0,0.00099999]
[1764947296915,0.21982565,90982.0,90980.0,0.00099999]
[1764947297121,0.01099227,90973.0,90966.0,0.21986137]
[1764947297331,0.01099275,90969.0,90966.0,0.00161287]
[1764947297555,0.21985753,90968.0,90966.0,0.00161287]
[1764947298206,0.03766,90973.0,90966.0,0.00161287]
[1764947298414,0.01099227,90973.0,90966.0,0.00161287]
[1764947298637,0.01099094,90984.0,90980.0,0.21982768]
[1764947298857,0.01099166,90978.0,90973.0,0.01099227]
[1764947299063,0.21984957,90972.0,90970.0,0.00161287]
[1764947299474,0.23084009,90973.0,90970.0,0.00161287]
[1764947299684,0.0109919,90976.0,90970.0,0.00161287]
[1764947299685,0.21983086,90980.0,90974.0,0.21984237]
[1764947299919,0.0109913,90981.0,90977.0,0.21983397]
[1764947300117,0.01099142,90980.0,90977.0,0.00161287]
[1764947300232,0.21994338,90982.0,90980.0,0.00303437]
[1764947300437,0.00011875,90982.0,90978.0,0.01099166]
[1764947300678,0.00011875,90982.0,90978.0,0.23243603]
[1764947301078,0.00011875,90982.0,90980.0,0.21982853]
[1764947301290,0.00011875,90982.0,90981.0,0.02359548]
[1764947301519,0.00011875,90982.0,90981.0,0.13122792]
[1764947301718,0.00011875,90982.0,90981.0,0.12347608]
[1764947301886,0.00011875,90982.0,90981.0,0.13122792]
[1764947302088,0.43937476,91039.0,90981.0,0.13122792]
[1764947302089,0.01098551,91029.0,91025.0,0.23070463]
[1764947302296,0.01098563,91028.0,91025.0,0.00161287]
[1764947302499,0.23069824,91028.0,91025.0,0.00161287]
[1764947302700,0.01098563,91028.0,91025.0,0.00161287]
[1764947302942,0.00011956,91029.0,91027.0,0.21971334]
[1764947303146,0.00011956,91029.0,91027.0,0.22132627]
[1764947303362,0.21968389,91040.0,91024.0,0.23070704]
[1764947303364,0.04786,91076.0,91048.0,0.01098321]
[1764947303565,0.04786,91076.0,91065.0,0.01098116]
[1764947303566,0.01098032,91072.0,91065.0,0.01098116]
[1764947303814,0.00011954,91076.0,91072.0,0.01098032]
[1764947304025,0.00011954,91076.0,91075.0,0.00161287]
[1764947304226,0.00011954,91076.0,91075.0,0.01985287]
[1764947304438,0.00011954,91076.0,91075.0,0.05362287]
[1764947304633,0.09932,91122.0,91112.0,0.0109755]
[1764947304634,0.01097502,91116.0,91112.0,0.0109755]
[1764947304861,0.01097538,91113.0,91110.0,0.00099999]
[1764947304997,0.01097658,91103.0,91100.0,0.00299996]
[1764947305221,0.0109767,91102.0,91096.0,0.23052444]
[1764947305488,0.21950529,91114.0,91100.0,0.00299996]
[1764947305648,0.01097682,91101.0,91096.0,0.00161287]
[1764947305821,0.43889785,91138.0,91110.0,0.00299996]
[1764947305822,0.09128,91115.0,91110.0,0.00299996]
[1764947306032,0.01097562,91111.0,91100.0,0.22253755]
[1764947306232,0.01097538,91113.0,91110.0,0.00099999]
[1764947306437,0.10225381,91126.0,91115.0,0.21950282]
[1764947306654,0.01097369,91127.0,91115.0,0.22111569]
[1764947307211,0.01097369,91127.0,91110.0,0.0139757]
[1764947307212,0.21951049,91112.0,91100.0,0.00199998]
[1764947307328,0.04725,91117.0,91076.0,0.03377]
[1764947307329,0.01097815,91090.0,91083.0,0.21957994]
[1764947307537,0.01097791,91092.0,91086.0,0.01097863]
[1764947307744,0.01097791,91092.0,91081.0,0.21958302]
[1764947307745,0.0109767,91102.0,91094.0,0.01097767]
[1764947307981,0.0109767,91102.0,91094.0,0.00161287]
[1764947307982,0.23052409,91097.0,91094.0,0.00161287]
[1764947308216,0.01097682,91101.0,91090.0,0.00299996]